[Event "II Open Internacional Ateneo Marítimo (60 Aniversario)"]
[Site "C/La reina 68 (Valencia), Spain"]
[Date "2018.09.15"]
[Round "5.3"]
[White "Campos Gambuti, Luis Maria"]
[Black "Kovacevic, Slobodan"]
[Result "0-1"]
[TimeControl "7m+3s por jugada"]
[WhiteFideId "2226979"]
[BlackFideId "902152"]
[WhiteElo "2382"]
[BlackElo "2252"]

1. d4 {[%clk 00:07:06]} Nf6 {[%clk 00:07:04]} {[%emt 00:00:10]} 2. Nf3 {[%clk
00:07:07]} e6 {[%clk 00:07:03]} {[%emt 00:00:04]} 3. b3 {[%clk 00:06:55]}
{[%emt 00:00:12]} c5 {[%clk 00:07:05]} 4. dxc5 {[%clk 00:06:57]} {[%emt
00:00:08]} Bxc5 {[%clk 00:07:06]} 5. e3 {[%clk 00:06:57]} b6 {[%clk 00:07:04]}
{[%emt 00:00:09]} 6. Bb2 {[%clk 00:06:58]} Bb7 {[%clk 00:07:06]} 7. a3 {[%clk
00:06:50]} {[%emt 00:00:07]} O-O {[%clk 00:07:06]} {[%emt 00:00:30]} 8. c4
{[%clk 00:06:50]} a6 {[%clk 00:07:05]} 9. Nc3 {[%clk 00:06:51]} Be7 {[%clk
00:07:07]} 10. Be2 {[%clk 00:06:53]} d6 {[%clk 00:07:09]} 11. O-O {[%clk
00:06:34]} {[%emt 00:00:18]} Nbd7 {[%clk 00:07:11]} 12. Nd4 {[%clk 00:06:28]}
Rc8 {[%clk 00:06:42]} {[%emt 00:00:49]} 13. Bf3 {[%clk 00:06:23]} Qc7 {[%clk
00:06:44]} 14. a4 {[%clk 00:06:19]} Rfd8 {[%clk 00:06:39]} {[%emt 00:00:07]} 15.
Bxb7 {[%clk 00:06:00]} {[%emt 00:00:19]} Qxb7 {[%clk 00:06:41]} {[%emt
00:00:06]} 16. a5 {[%clk 00:06:00]} bxa5 {[%clk 00:06:24]} {[%emt 00:00:18]} 17.
Rxa5 {[%clk 00:06:01]} {[%emt 00:00:06]} Ra8 {[%clk 00:06:25]} 18. Qc2 {[%clk
00:05:55]} {[%emt 00:00:09]} Rdb8 {[%clk 00:06:12]} {[%emt 00:00:18]} 19. Ba3
{[%clk 00:05:32]} {[%emt 00:00:28]} Rc8 {[%clk 00:06:01]} {[%emt 00:00:09]} 20.
Rb1 {[%clk 00:05:15]} {[%emt 00:00:25]} h6 {[%clk 00:05:35]} {[%emt 00:00:24]}
21. Qd2 {[%clk 00:04:59]} {[%emt 00:00:23]} Nc5 {[%clk 00:05:17]} {[%emt
00:00:17]} 22. Qe2 {[%clk 00:04:14]} {[%emt 00:00:53]} Bd8 {[%clk 00:05:18]} 23.
Rxc5 {[%clk 00:04:00]} {[%emt 00:00:14]} dxc5 {[%clk 00:05:17]} {[%emt
00:00:08]} 24. Nf3 {[%clk 00:04:02]} Rab8 {[%clk 00:05:14]} {[%emt 00:00:18]}
25. Qc2 {[%clk 00:03:36]} {[%emt 00:00:16]} Ba5 {[%clk 00:05:10]} {[%emt
00:00:06]} 26. Na4 {[%clk 00:03:34]} {[%emt 00:00:05]} Bb4 {[%clk 00:04:52]}
{[%emt 00:00:25]} 27. Bb2 {[%clk 00:03:33]} {[%emt 00:00:05]} Ne4 {[%clk
00:04:41]} {[%emt 00:00:10]} 28. Ne5 {[%clk 00:03:22]} {[%emt 00:00:12]} Rd8
{[%clk 00:04:34]} {[%emt 00:00:13]} 29. Nd3 {[%clk 00:03:23]} Qc6 {[%clk
00:04:19]} {[%emt 00:00:17]} 30. Nxb4 {[%clk 00:02:55]} {[%emt 00:00:35]} cxb4
{[%clk 00:04:12]} {[%emt 00:00:06]} 31. Bd4 {[%clk 00:02:49]} {[%emt 00:00:15]}
f6 {[%clk 00:04:05]} {[%emt 00:00:12]} 32. f4 {[%clk 00:02:48]} a5 {[%clk
00:04:03]} {[%emt 00:00:04]} 33. Ra1 {[%clk 00:02:38]} {[%emt 00:00:10]} Rb7
{[%clk 00:03:58]} {[%emt 00:00:08]} 34. Qe2 {[%clk 00:02:12]} {[%emt 00:00:30]}
Re8 {[%clk 00:03:50]} {[%emt 00:00:11]} 35. Qf3 {[%clk 00:01:58]} {[%emt
00:00:15]} e5 {[%clk 00:03:53]} {[%emt 00:00:07]} 36. fxe5 {[%clk 00:01:48]}
{[%emt 00:00:09]} fxe5 {[%clk 00:03:55]} 37. Bb2 {[%clk 00:01:50]} Rf7 {[%clk
00:03:56]} {[%emt 00:00:06]} 38. Qg4 {[%clk 00:01:52]} Rf2 {[%clk 00:03:32]}
{[%emt 00:00:25]} 39. Re1 {[%clk 00:01:31]} {[%emt 00:00:23]} Rd2 {[%clk
00:03:09]} {[%emt 00:00:27]} 40. Ba1 {[%clk 00:01:27]} {[%emt 00:00:06]} Rf8
{[%clk 00:02:54]} {[%emt 00:00:23]} 41. Bxe5 {[%clk 00:01:24]} {[%emt
00:00:08]} Rf7 {[%clk 00:02:56]} 42. Bd4 {[%clk 00:01:15]} {[%emt 00:00:16]} h5
{[%clk 00:02:54]} 43. Qh3 {[%clk 00:00:54]} {[%emt 00:00:19]} Rff2 {[%clk
00:02:51]} {[%emt 00:00:06]} 44. Nb6 {[%clk 00:00:47]} {[%emt 00:00:11]} Ng5
{[%clk 00:02:38]} {[%emt 00:00:16]} 45. Qc8+ {[%clk 00:00:16]} {[%emt
00:01:18]} Qxc8 {[%clk 00:02:39]} 46. Nxc8 {[%clk 00:00:18]} Rxg2+ {[%clk
00:02:40]} 0-1

[Event "II Open Internacional Ateneo Marítimo (60 Aniversario)"]
[Site "C/La reina 68 (Valencia), Spain"]
[Date "2018.09.15"]
[Round "5.4"]
[White "Granero Roca, Antonio"]
[Black "Garcia, Jhoel"]
[Result "0-1"]
[TimeControl "7m+3s por jugada"]
[WhiteFideId "2210509"]
[BlackFideId "3801110"]
[WhiteElo "2370"]
[BlackElo "2250"]

1. d4 {[%clk 00:07:05]} {[%emt 00:00:06]} Nf6 {[%clk 00:07:04]} 2. c4 {[%clk
00:07:06]} {[%emt 00:00:03]} e6 {[%clk 00:07:02]} {[%emt 00:00:08]} 3. Nf3
{[%clk 00:07:07]} b6 {[%clk 00:06:58]} {[%emt 00:00:04]} 4. g3 {[%clk
00:07:08]} {[%emt 00:00:03]} Ba6 {[%clk 00:07:00]} 5. b3 {[%clk 00:07:09]}
{[%emt 00:00:08]} d5 {[%clk 00:06:58]} 6. cxd5 {[%clk 00:07:05]} {[%emt
00:00:23]} exd5 {[%clk 00:06:59]} 7. Bg2 {[%clk 00:07:07]} Be7 {[%clk
00:07:01]} 8. O-O {[%clk 00:07:07]} O-O {[%clk 00:06:50]} {[%emt 00:00:07]} 9.
Bb2 {[%clk 00:07:05]} {[%emt 00:00:04]} Bb7 {[%clk 00:06:23]} {[%emt 00:01:13]}
10. Nc3 {[%clk 00:07:04]} Nbd7 {[%clk 00:05:20]} {[%emt 00:00:21]} 11. Ne5
{[%clk 00:07:04]} {[%emt 00:00:31]} c6 {[%clk 00:05:16]} 12. Rc1 {[%clk
00:06:56]} Rc8 {[%clk 00:05:17]} 13. Qd2 {[%clk 00:06:51]} {[%emt 00:00:07]}
Nxe5 {[%clk 00:05:15]} {[%emt 00:00:21]} 14. dxe5 {[%clk 00:06:53]} Nd7 {[%clk
00:05:17]} 15. Bh3 {[%clk 00:06:37]} {[%emt 00:00:13]} Ra8 {[%clk 00:04:38]}
{[%emt 00:00:29]} 16. f4 {[%clk 00:06:21]} {[%emt 00:00:19]} a5 {[%clk
00:04:33]} {[%emt 00:00:11]} 17. e4 {[%clk 00:06:14]} {[%emt 00:00:09]} d4
{[%clk 00:04:32]} {[%emt 00:00:05]} 18. Nd1 {[%clk 00:05:47]} {[%emt 00:00:27]}
Bb4 {[%clk 00:04:01]} {[%emt 00:00:37]} 19. Qc2 {[%clk 00:05:30]} {[%emt
00:00:18]} Ba6 {[%clk 00:03:52]} {[%emt 00:00:10]} 20. Rf2 {[%clk 00:04:56]}
{[%emt 00:01:19]} Nc5 {[%clk 00:03:48]} 21. a3 {[%clk 00:04:36]} {[%emt
00:00:32]} d3 {[%clk 00:03:42]} 22. Qb1 Be1 {[%clk 00:03:41]} 23. b4 {[%clk
00:04:08]} {[%emt 00:00:06]} axb4 {[%clk 00:03:35]} {[%emt 00:00:06]} 24. axb4
{[%clk 00:04:09]} {[%emt 00:00:07]} Nxe4 {[%clk 00:03:36]} {[%emt 00:00:03]} 25.
Rf3 {[%clk 00:03:54]} {[%emt 00:00:19]} d2 {[%clk 00:03:32]} {[%emt 00:00:06]}
26. Qxe4 {[%clk 00:03:37]} {[%emt 00:00:13]} dxc1=Q {[%clk 00:03:26]} {[%emt
00:00:17]} 27. Bxc1 {[%clk 00:03:36]} Qxd1 {[%clk 00:03:27]} {[%emt 00:00:04]}
0-1

[Event "II Open Internacional Ateneo Marítimo (60 Aniversario)"]
[Site "C/La reina 68 (Valencia), Spain"]
[Date "2018.09.15"]
[Round "5.5"]
[White "Chernikov, Vladimir"]
[Black "Fenollar Jorda, Manuel"]
[Result "1-0"]
[TimeControl "7m+3s por jugada"]
[WhiteFideId "14112914"]
[BlackFideId "2217104"]
[WhiteElo "2158"]
[BlackElo "2342"]

1. Nf3 {[%clk 00:07:05]} {[%emt 00:00:13]} d5 {[%clk 00:07:05]} 2. b3 {[%clk
00:07:05]} Nf6 {[%clk 00:07:05]} {[%emt 00:00:29]} 3. Bb2 {[%clk 00:07:07]} e6
{[%clk 00:07:03]} 4. d4 {[%clk 00:07:03]} c5 {[%clk 00:06:59]} 5. e3 {[%clk
00:06:54]} {[%emt 00:00:07]} Nc6 {[%clk 00:06:50]} {[%emt 00:00:05]} 6. Be2
{[%clk 00:06:51]} {[%emt 00:00:09]} Be7 {[%clk 00:06:50]} {[%emt 00:00:04]} 7.
O-O {[%clk 00:06:52]} O-O {[%clk 00:06:52]} {[%emt 00:00:03]} 8. dxc5 {[%clk
00:06:40]} {[%emt 00:00:25]} Bxc5 {[%clk 00:06:53]} 9. c4 {[%clk 00:06:42]}
dxc4 {[%clk 00:06:39]} {[%emt 00:00:09]} 10. Bxc4 {[%clk 00:06:39]} {[%emt
00:00:08]} a6 {[%clk 00:06:34]} {[%emt 00:00:13]} 11. a3 {[%clk 00:06:21]}
{[%emt 00:00:17]} b5 {[%clk 00:06:23]} {[%emt 00:00:07]} 12. Bd3 {[%clk
00:06:22]} {[%emt 00:00:32]} Bb7 {[%clk 00:06:22]} 13. b4 {[%clk 00:06:06]}
{[%emt 00:00:04]} Be7 {[%clk 00:06:14]} {[%emt 00:00:03]} 14. Qb3 {[%clk
00:05:59]} {[%emt 00:00:11]} Qb6 {[%clk 00:05:46]} {[%emt 00:00:32]} 15. Nbd2
{[%clk 00:05:39]} {[%emt 00:00:17]} Rfd8 {[%clk 00:05:18]} {[%emt 00:00:32]} 16.
Rfd1 {[%clk 00:05:22]} {[%emt 00:00:29]} Rd7 {[%clk 00:04:58]} {[%emt
00:00:15]} 17. Ne4 {[%clk 00:04:29]} {[%emt 00:01:07]} Rad8 {[%clk 00:04:11]}
{[%emt 00:00:44]} 18. Rac1 {[%clk 00:03:56]} {[%emt 00:00:29]} Nxe4 {[%clk
00:03:52]} {[%emt 00:00:22]} 19. Bxe4 {[%clk 00:03:56]} {[%emt 00:00:05]} Rxd1+
{[%clk 00:03:12]} {[%emt 00:00:40]} 20. Rxd1 {[%clk 00:03:58]} {[%emt
00:00:16]} Rxd1+ {[%clk 00:03:14]} 21. Qxd1 {[%clk 00:04:00]} f5 {[%clk
00:03:16]} 22. Qd7 {[%clk 00:02:57]} {[%emt 00:00:56]} fxe4 {[%clk 00:02:27]}
{[%emt 00:00:55]} 23. Qe8+ {[%clk 00:01:57]} {[%emt 00:00:59]} Bf8 {[%clk
00:02:26]} {[%emt 00:00:11]} 24. Qxe6+ {[%clk 00:01:51]} {[%emt 00:00:05]} Kh8
{[%clk 00:02:28]} 25. Ng5 {[%clk 00:01:28]} {[%emt 00:00:26]} h6 {[%clk
00:01:22]} {[%emt 00:01:18]} 26. Qxh6+ {[%clk 00:01:28]} 1-0

[Event "II Open Internacional Ateneo Marítimo (60 Aniversario)"]
[Site "C/La reina 68 (Valencia), Spain"]
[Date "2018.09.15"]
[Round "5.6"]
[White "Leon Colan, Carlos Edmundo"]
[Black "Camarena Gimenez, Rufino"]
[Result "0-1"]
[TimeControl "7m+3s por jugada"]
[WhiteFideId "3810364"]
[BlackFideId "2211106"]
[WhiteElo "1975"]
[BlackElo "2339"]

1. d4 {[%clk 00:07:03]} Nf6 {[%clk 00:07:03]} 2. g3 {[%clk 00:07:03]} g6 {[%clk
00:07:03]} 3. Bg2 {[%clk 00:07:03]} {[%emt 00:00:21]} Bg7 {[%clk 00:07:03]} 4.
e4 {[%clk 00:07:03]} d6 {[%clk 00:07:03]} 5. Ne2 {[%clk 00:07:03]} O-O {[%clk
00:07:03]} 6. c3 {[%clk 00:07:03]} e5 {[%clk 00:06:56]} {[%emt 00:00:04]} 7.
O-O {[%clk 00:07:03]} Qe7 {[%clk 00:06:53]} 8. f3 {[%clk 00:07:01]} b6 {[%clk
00:06:38]} {[%emt 00:00:25]} 9. Be3 {[%clk 00:06:58]} {[%emt 00:00:08]} Ba6
{[%clk 00:06:27]} {[%emt 00:00:04]} 10. Re1 {[%clk 00:06:57]} {[%emt 00:00:09]}
c5 {[%clk 00:06:20]} {[%emt 00:00:08]} 11. Na3 {[%clk 00:06:53]} {[%emt
00:00:09]} cxd4 {[%clk 00:05:57]} {[%emt 00:00:31]} 12. cxd4 {[%clk 00:06:53]}
Nc6 {[%clk 00:05:57]} 13. Nc2 {[%clk 00:06:39]} {[%emt 00:00:19]} h5 {[%clk
00:05:40]} {[%emt 00:00:11]} 14. Rc1 {[%clk 00:06:23]} {[%emt 00:00:36]} Rac8
{[%clk 00:05:34]} 15. Qd2 {[%clk 00:06:14]} {[%emt 00:00:06]} d5 {[%clk
00:05:23]} {[%emt 00:00:11]} 16. a3 {[%clk 00:05:38]} {[%emt 00:00:39]} dxe4
{[%clk 00:05:19]} {[%emt 00:00:54]} 17. fxe4 {[%clk 00:05:38]} exd4 {[%clk
00:05:16]} 18. Nexd4 {[%clk 00:05:01]} {[%emt 00:00:04]} Nxd4 {[%clk 00:04:47]}
{[%emt 00:01:00]} 19. Bxd4 {[%clk 00:04:58]} Rfd8 {[%clk 00:04:43]} {[%emt
00:00:07]} 20. Nb4 {[%clk 00:04:21]} {[%emt 00:00:25]} Rxc1 {[%clk 00:04:15]}
{[%emt 00:00:22]} 21. Rxc1 {[%clk 00:04:09]} {[%emt 00:00:23]} Nxe4 {[%clk
00:03:20]} {[%emt 00:00:50]} 22. Nc6 {[%clk 00:03:11]} {[%emt 00:01:03]} Bxd4+
{[%clk 00:03:01]} {[%emt 00:00:22]} 23. Nxd4 {[%clk 00:02:39]} {[%emt
00:01:05]} Nxd2 {[%emt 00:00:07]} 24. Nc6 0-1

[Event "II Open Internacional Ateneo Marítimo (60 Aniversario)"]
[Site "C/La reina 68 (Valencia), Spain"]
[Date "2018.09.15"]
[Round "5.7"]
[White "Roca Galarza, Jose"]
[Black "Nieves Cabanes, Jose Manuel"]
[Result "0-1"]
[TimeControl "7m+3s por jugada"]
[WhiteFideId "2220768"]
[BlackFideId "22245715"]
[WhiteElo "2330"]
[BlackElo "2278"]

1. Nf3 {[%clk 00:07:04]} Nf6 {[%clk 00:07:05]} 2. c4 {[%clk 00:07:07]} e6
{[%clk 00:07:04]} 3. g3 {[%clk 00:07:08]} b6 {[%clk 00:07:07]} 4. Bg2 {[%clk
00:07:10]} {[%emt 00:00:11]} Bb7 {[%clk 00:07:09]} 5. O-O {[%clk 00:07:11]} Be7
{[%clk 00:07:10]} 6. Nc3 {[%clk 00:07:11]} c5 {[%clk 00:07:01]} {[%emt
00:00:10]} 7. d4 {[%clk 00:07:13]} {[%emt 00:00:21]} cxd4 {[%clk 00:07:00]}
{[%emt 00:00:04]} 8. Qxd4 {[%clk 00:07:13]} Nc6 {[%clk 00:06:56]} 9. Qf4 {[%clk
00:07:14]} O-O {[%clk 00:06:52]} {[%emt 00:00:04]} 10. Rd1 {[%clk 00:07:13]}
Qb8 {[%clk 00:06:24]} {[%emt 00:00:45]} 11. Qxb8 {[%clk 00:06:46]} {[%emt
00:00:11]} Raxb8 {[%clk 00:06:25]} {[%emt 00:00:07]} 12. Bf4 {[%clk 00:06:46]}
{[%emt 00:00:16]} Rbd8 {[%clk 00:06:02]} {[%emt 00:00:11]} 13. Bc7 {[%clk
00:06:12]} {[%emt 00:00:43]} Rc8 {[%clk 00:05:59]} {[%emt 00:00:04]} 14. Bd6
{[%clk 00:06:14]} Bxd6 {[%clk 00:05:38]} {[%emt 00:00:21]} 15. Rxd6 {[%clk
00:06:14]} {[%emt 00:00:08]} Ne7 {[%clk 00:05:29]} {[%emt 00:00:05]} 16. b3
{[%clk 00:02:08]} {[%emt 00:04:32]} Nf5 {[%clk 00:05:30]} 17. Rd3 {[%clk
00:01:44]} {[%emt 00:00:13]} d5 {[%clk 00:05:31]} 18. cxd5 {[%clk 00:01:24]}
{[%emt 00:00:16]} Nxd5 {[%clk 00:05:20]} {[%emt 00:00:30]} 19. Nxd5 {[%clk
00:01:23]} Bxd5 {[%clk 00:05:21]} 20. Rd2 {[%clk 00:01:20]} {[%emt 00:00:04]}
h5 {[%clk 00:04:50]} {[%emt 00:00:27]} 21. Ne5 {[%clk 00:01:05]} {[%emt
00:00:21]} Bxg2 {[%clk 00:04:40]} {[%emt 00:00:10]} 22. Kxg2 {[%clk 00:01:06]}
{[%emt 00:00:37]} f6 {[%clk 00:04:13]} 23. Nf3 {[%clk 00:01:02]} {[%emt
00:00:05]} Rfd8 {[%clk 00:03:56]} {[%emt 00:00:18]} 24. Rad1 {[%clk 00:01:02]}
{[%emt 00:00:22]} Rxd2 {[%clk 00:03:54]} 25. Rxd2 {[%clk 00:01:04]} Rc7 {[%clk
00:03:48]} 26. e4 {[%clk 00:01:05]} Ne7 {[%clk 00:03:47]} {[%emt 00:00:19]} 27.
Kf1 {[%clk 00:00:52]} Kf7 {[%clk 00:03:48]} {[%emt 00:00:10]} 28. Ke2 {[%clk
00:00:54]} e5 {[%clk 00:03:27]} {[%emt 00:00:15]} 29. Kd3 {[%clk 00:00:41]}
{[%emt 00:00:16]} Ke6 {[%clk 00:03:25]} {[%emt 00:00:34]} 30. Rc2 {[%clk
00:00:32]} {[%emt 00:00:04]} Rd7+ {[%clk 00:03:07]} {[%emt 00:00:04]} 31. Ke3
{[%clk 00:00:32]} {[%emt 00:00:23]} Rd6 {[%clk 00:02:39]} {[%emt 00:00:06]} 32.
Rc7 {[%clk 00:00:22]} {[%emt 00:00:12]} a5 {[%clk 00:02:20]} {[%emt 00:00:25]}
33. Nd2 {[%clk 00:00:24]} b5 {[%clk 00:02:10]} {[%emt 00:00:13]} 34. a4 {[%clk
00:00:26]} bxa4 {[%clk 00:02:00]} {[%emt 00:00:13]} 35. bxa4 {[%clk 00:00:27]}
{[%emt 00:00:35]} Rc6 {[%clk 00:01:33]} 36. Ra7 {[%clk 00:00:28]} Rc3+ {[%clk
00:01:31]} {[%emt 00:00:14]} 37. Ke2 {[%clk 00:00:27]} Nc6 {[%clk 00:01:32]} 38.
Rxg7 {[%clk 00:00:22]} {[%emt 00:00:09]} Nd4+ {[%clk 00:01:34]} 39. Kd1 {[%clk
00:00:24]} Ra3 {[%clk 00:01:33]} {[%emt 00:00:03]} 40. Kc1 {[%clk 00:00:18]}
{[%emt 00:00:13]} Rxa4 {[%clk 00:01:32]} 41. Rh7 {[%clk 00:00:19]} {[%emt
00:00:17]} Ra1+ {[%clk 00:01:30]} 42. Kb2 {[%clk 00:00:21]} Re1 {[%clk
00:01:27]} 43. Rxh5 {[%clk 00:00:20]} {[%emt 00:00:06]} Re2 {[%clk 00:01:29]}
44. Kc3 {[%clk 00:00:20]} {[%emt 00:00:09]} Rxf2 {[%clk 00:01:20]} 45. Rh8
{[%clk 00:00:22]} {[%emt 00:00:04]} a4 {[%clk 00:01:11]} {[%emt 00:00:14]} 46.
h4 {[%clk 00:00:20]} {[%emt 00:00:16]} a3 {[%clk 00:01:12]} 47. Ra8 {[%clk
00:00:21]} Rg2 {[%clk 00:01:10]} 48. Ra6+ {[%clk 00:00:19]} Kf7 {[%clk
00:01:09]} {[%emt 00:00:11]} 49. Nc4 {[%clk 00:00:20]} Rxg3+ {[%clk 00:01:09]}
50. Kb4 {[%clk 00:00:23]} Nc2+ {[%clk 00:01:00]} {[%emt 00:00:06]} 51. Kc5
{[%clk 00:00:25]} {[%emt 00:00:35]} Rc3 {[%clk 00:00:56]} 52. Ra7+ {[%clk
00:00:26]} Kg6 {[%clk 00:00:57]} {[%emt 00:00:04]} 53. Kb5 {[%clk 00:00:25]}
Nd4+ {[%clk 00:00:56]} 54. Kc5 {[%clk 00:00:26]} Nc2 {[%clk 00:00:40]} {[%emt
00:00:08]} 55. Kd5 {[%clk 00:00:27]} {[%emt 00:00:03]} a2 {[%clk 00:00:38]} 56.
h5+ {[%clk 00:00:23]} {[%emt 00:00:04]} Kxh5 {[%clk 00:00:38]} {[%emt
00:00:09]} 0-1

[Event "II Open Internacional Ateneo Marítimo (60 Aniversario)"]
[Site "C/La reina 68 (Valencia), Spain"]
[Date "2018.09.15"]
[Round "6.1"]
[White "Kovacevic, Slobodan"]
[Black "Plaskett, H James"]
[Result "1-0"]
[TimeControl "7m+3s por jugada"]
[WhiteFideId "902152"]
[BlackFideId "400238"]
[WhiteElo "2252"]
[BlackElo "2450"]

1. d4 {[%clk 00:07:03]} {[%emt 00:01:39]} Nf6 {[%clk 00:07:03]} {[%emt
00:00:28]} 2. Nf3 {[%clk 00:07:05]} g6 {[%clk 00:07:01]} 3. Bg5 {[%clk
00:07:06]} Bg7 {[%clk 00:07:02]} 4. Nbd2 {[%clk 00:07:08]} O-O {[%clk
00:07:03]} 5. c3 {[%clk 00:07:10]} {[%emt 00:00:07]} d6 {[%clk 00:07:03]} 6. e4
{[%clk 00:07:12]} Nc6 {[%clk 00:07:00]} {[%emt 00:00:03]} 7. Bb5 {[%clk
00:07:13]} h6 {[%clk 00:07:01]} 8. Bh4 {[%clk 00:07:15]} Bd7 {[%clk 00:06:59]}
{[%emt 00:00:05]} 9. O-O {[%clk 00:07:15]} {[%emt 00:00:04]} Nh5 {[%clk
00:06:55]} {[%emt 00:00:07]} 10. Re1 {[%clk 00:07:05]} {[%emt 00:00:11]} Qe8
{[%clk 00:06:55]} {[%emt 00:00:05]} 11. a4 {[%clk 00:06:51]} {[%emt 00:00:17]}
a6 {[%clk 00:06:44]} {[%emt 00:00:10]} 12. Bf1 {[%clk 00:06:47]} {[%emt
00:00:09]} e5 {[%clk 00:06:35]} {[%emt 00:00:15]} 13. dxe5 {[%clk 00:06:44]}
{[%emt 00:00:05]} Nxe5 {[%clk 00:06:30]} {[%emt 00:00:12]} 14. Nxe5 {[%clk
00:06:45]} Qxe5 {[%clk 00:06:21]} {[%emt 00:00:06]} 15. f3 {[%clk 00:06:10]}
{[%emt 00:00:39]} Be6 {[%clk 00:05:39]} {[%emt 00:00:45]} 16. Kh1 {[%clk
00:06:04]} {[%emt 00:00:07]} Rae8 {[%clk 00:05:15]} {[%emt 00:00:36]} 17. Bf2
{[%clk 00:05:53]} {[%emt 00:00:40]} Qg5 {[%clk 00:04:53]} {[%emt 00:00:03]} 18.
Nc4 {[%clk 00:05:49]} Kh8 {[%clk 00:03:49]} {[%emt 00:01:04]} 19. Ne3 {[%clk
00:05:49]} {[%emt 00:00:03]} f5 {[%clk 00:03:34]} {[%emt 00:00:18]} 20. exf5
{[%clk 00:05:39]} {[%emt 00:00:15]} gxf5 {[%clk 00:03:36]} {[%emt 00:00:13]} 21.
Nd5 {[%clk 00:05:35]} Qd8 {[%clk 00:03:15]} {[%emt 00:00:15]} 22. Qd2 {[%clk
00:05:29]} {[%emt 00:00:33]} c6 {[%clk 00:02:51]} {[%emt 00:00:07]} 23. Bb6
{[%clk 00:04:38]} {[%emt 00:00:50]} Qd7 {[%clk 00:02:16]} {[%emt 00:00:37]} 24.
Nc7 {[%clk 00:04:23]} {[%emt 00:00:44]} Re7 {[%clk 00:02:18]} 25. Nxe6 {[%clk
00:04:08]} {[%emt 00:00:11]} Rxe6 {[%clk 00:02:18]} 26. Rxe6 {[%clk 00:04:06]}
Qxe6 {[%clk 00:02:20]} 27. Re1 {[%clk 00:04:07]} Qg6 {[%clk 00:01:43]} {[%emt
00:00:33]} 28. Re7 {[%clk 00:03:46]} {[%emt 00:00:34]} c5 {[%clk 00:01:38]} 29.
a5 {[%clk 00:03:37]} {[%emt 00:00:12]} Be5 {[%clk 00:00:53]} {[%emt 00:00:47]}
30. Bxc5 {[%clk 00:02:43]} {[%emt 00:01:00]} Bxh2 {[%clk 00:00:54]} {[%emt
00:00:04]} 31. Kxh2 {[%clk 00:02:46]} dxc5 {[%clk 00:00:55]} 32. Qe3 {[%clk
00:02:37]} {[%emt 00:00:09]} Qd6+ {[%clk 00:00:12]} {[%emt 00:00:56]} 33. Kg1
{[%clk 00:02:36]} Nf6 {[%clk 00:00:06]} {[%emt 00:00:18]} 34. Qxh6+ {[%clk
00:02:32]} 1-0

[Event "II Open Internacional Ateneo Marítimo (60 Aniversario)"]
[Site "C/La reina 68 (Valencia), Spain"]
[Date "2018.09.15"]
[Round "6.2"]
[White "Cruz Lledo, Pablo"]
[Black "Garcia, Jhoel"]
[Result "1-0"]
[TimeControl "7m+3s por jugada"]
[WhiteFideId "2297361"]
[BlackFideId "3801110"]
[WhiteElo "2436"]
[BlackElo "2250"]

1. d4 {[%clk 00:07:04]} {[%emt 00:00:11]} Nf6 {[%clk 00:07:03]} 2. Nf3 {[%clk
00:07:05]} e6 {[%clk 00:06:51]} {[%emt 00:00:31]} 3. g3 {[%clk 00:07:05]}
{[%emt 00:00:11]} b6 {[%clk 00:06:53]} 4. Bg2 {[%clk 00:07:06]} Bb7 {[%clk
00:06:51]} 5. O-O {[%clk 00:07:07]} c5 {[%clk 00:06:47]} {[%emt 00:00:04]} 6.
dxc5 {[%clk 00:06:55]} {[%emt 00:00:04]} Bxc5 {[%clk 00:06:36]} {[%emt
00:00:16]} 7. b3 {[%clk 00:06:51]} {[%emt 00:00:05]} Be7 {[%clk 00:06:37]}
{[%emt 00:00:03]} 8. c4 {[%clk 00:06:44]} {[%emt 00:00:06]} O-O {[%clk
00:06:30]} {[%emt 00:00:16]} 9. Bb2 {[%clk 00:06:46]} {[%emt 00:00:03]} d6
{[%clk 00:06:31]} 10. Nc3 {[%clk 00:06:39]} {[%emt 00:00:05]} a6 {[%clk
00:06:32]} {[%emt 00:00:34]} 11. Qc2 {[%clk 00:06:30]} Nbd7 {[%clk 00:06:33]}
12. Rad1 {[%clk 00:06:32]} Qc7 {[%clk 00:06:29]} 13. Qb1 {[%clk 00:06:34]} Rac8
{[%clk 00:06:30]} 14. Qa1 {[%clk 00:06:34]} {[%emt 00:00:03]} Qb8 {[%clk
00:06:32]} 15. Rfe1 {[%clk 00:06:06]} {[%emt 00:00:24]} Rfd8 {[%clk 00:06:18]}
{[%emt 00:00:45]} 16. Nh4 {[%clk 00:05:19]} {[%emt 00:00:24]} Bxg2 {[%clk
00:06:08]} {[%emt 00:00:19]} 17. Nxg2 {[%clk 00:05:20]} b5 {[%clk 00:06:09]} 18.
cxb5 {[%clk 00:05:11]} {[%emt 00:00:08]} axb5 {[%clk 00:06:12]} 19. a4 {[%clk
00:05:05]} {[%emt 00:00:13]} bxa4 {[%clk 00:06:12]} {[%emt 00:00:37]} 20. bxa4
{[%clk 00:05:06]} Nc5 {[%clk 00:05:58]} 21. Nf4 {[%clk 00:04:38]} {[%emt
00:00:21]} d5 {[%clk 00:05:53]} {[%emt 00:00:03]} 22. Nd3 {[%clk 00:04:36]}
{[%emt 00:00:06]} Qb6 {[%clk 00:05:14]} {[%emt 00:00:38]} 23. a5 {[%clk
00:04:06]} {[%emt 00:00:35]} Qa6 {[%clk 00:05:04]} {[%emt 00:00:11]} 24. Nxc5
{[%clk 00:03:42]} {[%emt 00:00:39]} Bxc5 {[%clk 00:05:06]} 25. Qa4 {[%clk
00:02:00]} {[%emt 00:01:42]} Rb8 {[%clk 00:03:47]} {[%emt 00:01:29]} 26. Ba3
{[%clk 00:01:32]} {[%emt 00:00:16]} Rdc8 {[%clk 00:03:34]} {[%emt 00:00:18]} 27.
Rb1 {[%clk 00:01:27]} {[%emt 00:00:06]} Rxb1 {[%clk 00:03:26]} {[%emt
00:00:29]} 28. Rxb1 {[%clk 00:01:16]} Ba7 {[%clk 00:03:13]} {[%emt 00:00:12]}
29. Nb5 {[%clk 00:01:07]} {[%emt 00:00:15]} Ne4 {[%clk 00:01:54]} {[%emt
00:01:31]} 30. e3 {[%clk 00:01:09]} Rb8 {[%clk 00:01:06]} {[%emt 00:00:40]} 31.
Rb3 {[%clk 00:01:00]} {[%emt 00:00:41]} Rc8 {[%clk 00:00:28]} {[%emt 00:00:13]}
32. Nxa7 {[%clk 00:00:45]} {[%emt 00:00:17]} Qxa7 {[%clk 00:00:28]} {[%emt
00:00:42]} 33. a6 {[%clk 00:00:44]} h5 {[%clk 00:00:16]} 34. Rb7 {[%clk
00:00:38]} Qa8 {[%clk 00:00:10]} {[%emt 00:00:06]} 35. Qd7 {[%clk 00:00:37]}
Ng5 {[%clk 00:00:10]} {[%emt 00:00:03]} 36. h4 {[%clk 00:00:28]} {[%emt
00:00:12]} Rd8 {[%clk 00:00:10]} {[%emt 00:00:10]} 37. Qe7 {[%clk 00:00:23]}
{[%emt 00:00:04]} Qxa6 {[%clk 00:00:06]} {[%emt 00:00:03]} 38. hxg5 {[%clk
00:00:18]} {[%emt 00:00:10]} 1-0